[Event "Titled Tuesday Blitz November 29 Early 2022"]
[White "Gheorghiu, Calin"]
[Black "Gabrielian, Artur"]
[WhiteFideId "1200305"]
[BlackFideId "4131002"]
[WhiteElo "2225"]
[BlackElo "2432"]
[Result "1/2-1/2"]
[Round "07"]
[TimeControl "180+1"]
[Date "2022.11.30"]
[WhiteClock "0:00:08"]
[BlackClock "0:00:17"]

1. e4 {[%clk 0:02:09]}  c5 {[%clk 0:02:59]} 2. Nf3 {[%clk 0:02:09]}  d6 {[%clk 0:02:59]} 3. d4 {[%clk 0:02:08]}  cxd4 {[%clk 0:03:00]} 4. Nxd4 {[%clk 0:02:09]}  Nf6 {[%clk 0:03:00]} 5. Nc3 {[%clk 0:02:09]}  Nc6 {[%clk 0:03:01]} 6. Bg5 {[%clk 0:02:08]}  e6 {[%clk 0:03:01]} 7. f3 {[%clk 0:01:53]}  a6 {[%clk 0:02:51]} 8. Qd2 {[%clk 0:01:53]}  Bd7 {[%clk 0:02:50]} 9. O-O-O {[%clk 0:01:52]}  Nxd4 {[%clk 0:02:47]} 10. Qxd4 {[%clk 0:01:53]}  h6 {[%clk 0:02:47]} 11. Be3 {[%clk 0:01:48]}  Bc6 {[%clk 0:02:47]} 12. g4 {[%clk 0:01:48]}  d5 {[%clk 0:02:47]} 13. exd5 {[%clk 0:01:45]}  Nxd5 {[%clk 0:02:47]} 14. Nxd5 {[%clk 0:01:46]}  Qxd5 {[%clk 0:02:47]} 15. Qxd5 {[%clk 0:01:25]}  Bxd5 {[%clk 0:02:47]} 16. Be2 {[%clk 0:01:25]}  Be7 {[%clk 0:02:46]} 17. c4 {[%clk 0:01:24]}  Bc6 {[%clk 0:02:46]} 18. a3 {[%clk 0:01:23]}  Rc8 {[%clk 0:02:43]} 19. Kb1 {[%clk 0:01:21]}  Bg5 {[%clk 0:02:39]} 20. Rd3 {[%clk 0:01:12]}  Bxe3 {[%clk 0:02:38]} 21. Rxe3 {[%clk 0:01:12]}  g5 {[%clk 0:02:38]} 22. h4 {[%clk 0:01:10]}  Ke7 {[%clk 0:02:36]} 23. b4 {[%clk 0:01:04]}  f6 {[%clk 0:02:18]} 24. Bd3 {[%clk 0:01:00]}  e5 {[%clk 0:02:06]} 25. Be4 {[%clk 0:00:55]}  Bxe4+ {[%clk 0:02:05]} 26. Rxe4 {[%clk 0:00:56]}  Rcd8 {[%clk 0:02:02]} 27. Kc2 {[%clk 0:00:52]}  Ke6 {[%clk 0:02:01]} 28. Kc3 {[%clk 0:00:48]}  h5 {[%clk 0:01:38]} 29. hxg5 {[%clk 0:00:42]}  hxg4 {[%clk 0:01:38]} 30. Rxh8 {[%clk 0:00:41]}  Rxh8 {[%clk 0:01:38]} 31. Rxg4 {[%clk 0:00:40]}  f5 {[%clk 0:01:38]} 32. Rg3 {[%clk 0:00:39]}  f4 {[%clk 0:01:38]} 33. Rg1 {[%clk 0:00:36]}  Rh3 {[%clk 0:01:37]} 34. g6 {[%clk 0:00:29]}  Rg3 {[%clk 0:01:30]} 35. Rd1 {[%clk 0:00:18]}  Rxf3+ {[%clk 0:01:24]} 36. Kb2 {[%clk 0:00:14]}  Rg3 {[%clk 0:01:23]} 37. c5 {[%clk 0:00:14]}  Rxg6 {[%clk 0:01:22]} 38. Rd6+ {[%clk 0:00:13]}  Kf5 {[%clk 0:01:22]} 39. Rd7 {[%clk 0:00:14]}  b6 {[%clk 0:01:18]} 40. Rf7+ {[%clk 0:00:13]}  Kg4 {[%clk 0:01:12]} 41. Kc3 {[%clk 0:00:13]}  f3 {[%clk 0:01:06]} 42. Kc4 {[%clk 0:00:13]}  bxc5 {[%clk 0:01:04]} 43. bxc5 {[%clk 0:00:13]}  Kg3 {[%clk 0:01:04]} 44. Kd5 {[%clk 0:00:13]}  Rg5 {[%clk 0:00:59]} 45. c6 {[%clk 0:00:12]}  f2 {[%clk 0:00:58]} 46. c7 {[%clk 0:00:11]}  Rg8 {[%clk 0:00:58]} 47. Kxe5 {[%clk 0:00:11]}  Kg2 {[%clk 0:00:40]} 48. Kd6 {[%clk 0:00:11]}  f1=Q {[%clk 0:00:31]} 49. Rxf1 {[%clk 0:00:12]}  Kxf1 {[%clk 0:00:31]} 50. Kd7 {[%clk 0:00:11]}  Ke2 {[%clk 0:00:21]} 51. c8=Q {[%clk 0:00:11]}  Rxc8 {[%clk 0:00:22]} 52. Kxc8 {[%clk 0:00:11]}  a5 {[%clk 0:00:20]} 53. Kb7 {[%clk 0:00:11]}  Kd3 {[%clk 0:00:17]} 54. Kb6 {[%clk 0:00:12]}  Kc4 {[%clk 0:00:15]} 55. Kxa5 {[%clk 0:00:10]}  Kc5 {[%clk 0:00:15]} 56. Ka6 {[%clk 0:00:05]}  Kc6 {[%clk 0:00:15]} 57. a4 {[%clk 0:00:05]}  Kc7 {[%clk 0:00:15]} 58. a5 {[%clk 0:00:06]}  Kb8 {[%clk 0:00:15]} 59. Kb5 {[%clk 0:00:06]}  Ka7 {[%clk 0:00:15]} 60. a6 {[%clk 0:00:07]}  Ka8 {[%clk 0:00:16]} 61. Kb6 {[%clk 0:00:07]}  Kb8 {[%clk 0:00:16]} 62. a7+ {[%clk 0:00:08]}  Ka8 {[%clk 0:00:17]} 63. Ka6 {[%clk 0:00:08]} 1/2-1/2


[Site "https://www.chess.com"]

[Event "Titled Tuesday Blitz November 29 Early 2022"]
[White "Girel, Joseph"]
[Black "Leenhouts, Koen"]
[WhiteFideId "36033561"]
[BlackFideId "1008439"]
[WhiteElo "2281"]
[BlackElo "2409"]
[Result "0-1"]
[Round "07"]
[TimeControl "180+1"]
[Date "2022.11.30"]
[WhiteClock "0:00:21"]
[BlackClock "0:00:05"]

1. e4 {[%clk 0:03:00]}  e5 {[%clk 0:02:58]} 2. Nf3 {[%clk 0:02:59]}  d6 {[%clk 0:02:58]} 3. d4 {[%clk 0:02:58]}  exd4 {[%clk 0:02:59]} 4. Nxd4 {[%clk 0:02:58]}  Nf6 {[%clk 0:02:59]} 5. Nc3 {[%clk 0:02:58]}  Be7 {[%clk 0:02:59]} 6. g3 {[%clk 0:02:58]}  O-O {[%clk 0:02:59]} 7. Bg2 {[%clk 0:02:58]}  c6 {[%clk 0:03:00]} 8. O-O {[%clk 0:02:58]}  b5 {[%clk 0:02:46]} 9. e5 {[%clk 0:02:50]}  dxe5 {[%clk 0:02:44]} 10. Nxc6 {[%clk 0:02:50]}  Nxc6 {[%clk 0:02:41]} 11. Bxc6 {[%clk 0:02:50]}  Bh3 {[%clk 0:02:37]} 12. Re1 {[%clk 0:02:40]}  b4 {[%clk 0:02:24]} 13. Nd5 {[%clk 0:02:23]}  Nxd5 {[%clk 0:02:22]} 14. Qxd5 {[%clk 0:02:20]}  Rc8 {[%clk 0:02:17]} 15. Be3 {[%clk 0:02:11]}  Qxd5 {[%clk 0:02:08]} 16. Bxd5 {[%clk 0:02:12]}  Rxc2 {[%clk 0:02:08]} 17. b3 {[%clk 0:01:59]}  a5 {[%clk 0:02:02]} 18. Rec1 {[%clk 0:01:56]}  Rfc8 {[%clk 0:02:01]} 19. Bc4 {[%clk 0:01:55]}  Rxc1+ {[%clk 0:01:43]} 20. Rxc1 {[%clk 0:01:56]}  Kf8 {[%clk 0:01:27]} 21. Bb6 {[%clk 0:01:54]}  Bd8 {[%clk 0:01:25]} 22. Be3 {[%clk 0:01:49]}  Bd7 {[%clk 0:01:21]} 23. Rd1 {[%clk 0:01:47]}  Bg4 {[%clk 0:01:08]} 24. Rd6 {[%clk 0:01:41]}  a4 {[%clk 0:00:59]} 25. Ra6 {[%clk 0:01:31]}  a3 {[%clk 0:00:48]} 26. Ra7 {[%clk 0:01:27]}  Be7 {[%clk 0:00:43]} 27. Kg2 {[%clk 0:01:20]}  Be6 {[%clk 0:00:26]} 28. Ba6 {[%clk 0:01:07]}  Bd5+ {[%clk 0:00:22]} 29. Kh3 {[%clk 0:01:01]}  Rc2 {[%clk 0:00:22]} 30. Bb7 {[%clk 0:00:56]}  Bxb7 {[%clk 0:00:17]} 31. Rxb7 {[%clk 0:00:56]}  f5 {[%clk 0:00:15]} 32. Rb8+ {[%clk 0:00:51]}  Kf7 {[%clk 0:00:14]} 33. Rb7 {[%clk 0:00:52]}  Ke6 {[%clk 0:00:09]} 34. Rb6+ {[%clk 0:00:52]}  Kd5 {[%clk 0:00:08]} 35. Rb7 {[%clk 0:00:52]}  Bd6 {[%clk 0:00:04]} 36. Rxg7 {[%clk 0:00:49]}  Rxa2 {[%clk 0:00:05]} 37. Rxh7 {[%clk 0:00:49]}  Rb2 {[%clk 0:00:05]} 38. Ra7 {[%clk 0:00:48]}  Rxb3 {[%clk 0:00:05]} 39. Kg2 {[%clk 0:00:45]}  Rxe3 {[%clk 0:00:05]} 40. fxe3 {[%clk 0:00:44]}  b3 {[%clk 0:00:06]} 41. h4 {[%clk 0:00:41]}  b2 {[%clk 0:00:06]} 42. Rb7 {[%clk 0:00:41]}  a2 {[%clk 0:00:06]} 43. Rxb2 {[%clk 0:00:42]}  a1=Q {[%clk 0:00:06]} 44. Rf2 {[%clk 0:00:43]}  Ke4 {[%clk 0:00:05]} 45. h5 {[%clk 0:00:42]}  Qd1 {[%clk 0:00:05]} 46. h6 {[%clk 0:00:41]}  Qh5 {[%clk 0:00:06]} 47. Ra2 {[%clk 0:00:41]}  Qxh6 {[%clk 0:00:06]} 48. Ra4+ {[%clk 0:00:42]}  Kxe3 {[%clk 0:00:05]} 49. Ra5 {[%clk 0:00:43]}  Bc5 {[%clk 0:00:03]} 50. Rxc5 {[%clk 0:00:42]}  Kd4 {[%clk 0:00:04]} 51. Rc2 {[%clk 0:00:42]}  Qe3 {[%clk 0:00:04]} 52. Ra2 {[%clk 0:00:41]}  Qe4+ {[%clk 0:00:04]} 53. Kh2 {[%clk 0:00:41]}  Qe3 {[%clk 0:00:05]} 54. Ra4+ {[%clk 0:00:41]}  Kd5 {[%clk 0:00:05]} 55. Ra5+ {[%clk 0:00:41]}  Ke4 {[%clk 0:00:05]} 56. Ra2 {[%clk 0:00:42]}  Qd4 {[%clk 0:00:06]} 57. Kg2 {[%clk 0:00:40]}  Kd5 {[%clk 0:00:07]} 58. Ra5+ {[%clk 0:00:39]}  Ke6 {[%clk 0:00:06]} 59. Ra6+ {[%clk 0:00:39]}  Kf7 {[%clk 0:00:06]} 60. Kh2 {[%clk 0:00:36]}  Qd2+ {[%clk 0:00:06]} 61. Kh3 {[%clk 0:00:37]}  Qe2 {[%clk 0:00:07]} 62. Ra8 {[%clk 0:00:32]}  Qg4+ {[%clk 0:00:04]} 63. Kh2 {[%clk 0:00:31]}  Qe2+ {[%clk 0:00:04]} 64. Kh3 {[%clk 0:00:31]}  Qf1+ {[%clk 0:00:05]} 65. Kh2 {[%clk 0:00:31]}  f4 {[%clk 0:00:04]} 66. Ra2 {[%clk 0:00:23]}  f3 {[%clk 0:00:04]} 67. g4 {[%clk 0:00:22]}  e4 {[%clk 0:00:04]} 68. Kg3 {[%clk 0:00:22]}  e3 {[%clk 0:00:04]} 69. Kf4 {[%clk 0:00:19]}  e2 {[%clk 0:00:05]} 70. Kf5 {[%clk 0:00:20]}  e1=Q {[%clk 0:00:05]} 71. Ra7+ {[%clk 0:00:21]}  Qe7 {[%clk 0:00:05]} 0-1


[Site "https://www.chess.com"]

[Event "Titled Tuesday Blitz November 29 Early 2022"]
[White "Gorodetzky, David"]
[Black "Chigaev, Maksim"]
[WhiteFideId "2813416"]
[BlackFideId "4108116"]
[WhiteElo "2870"]
[BlackElo "3003"]
[Result "0-1"]
[Round "07"]
[TimeControl "180+1"]
[Date "2022.11.30"]
[WhiteClock "0:00:01"]
[BlackClock "0:00:21"]

1. e4 {[%clk 0:02:18]}  c5 {[%clk 0:02:58]} 2. c3 {[%clk 0:02:16]}  d5 {[%clk 0:02:58]} 3. exd5 {[%clk 0:02:15]}  Qxd5 {[%clk 0:02:58]} 4. d4 {[%clk 0:02:15]}  Nf6 {[%clk 0:02:59]} 5. Nf3 {[%clk 0:02:14]}  e6 {[%clk 0:03:00]} 6. Be3 {[%clk 0:02:13]}  cxd4 {[%clk 0:03:00]} 7. cxd4 {[%clk 0:02:13]}  Bb4+ {[%clk 0:03:00]} 8. Nc3 {[%clk 0:02:14]}  O-O {[%clk 0:03:00]} 9. Bd3 {[%clk 0:02:12]}  b6 {[%clk 0:03:00]} 10. O-O {[%clk 0:02:11]}  Bxc3 {[%clk 0:03:00]} 11. bxc3 {[%clk 0:02:12]}  Ba6 {[%clk 0:03:01]} 12. Bxa6 {[%clk 0:02:04]}  Nxa6 {[%clk 0:03:01]} 13. Qe2 {[%clk 0:02:04]}  Nb8 {[%clk 0:03:02]} 14. c4 {[%clk 0:02:04]}  Qf5 {[%clk 0:03:01]} 15. Rac1 {[%clk 0:01:58]}  Nc6 {[%clk 0:02:54]} 16. d5 {[%clk 0:01:41]}  exd5 {[%clk 0:02:44]} 17. cxd5 {[%clk 0:01:40]}  Qxd5 {[%clk 0:02:29]} 18. Rfd1 {[%clk 0:01:39]}  Qe4 {[%clk 0:02:08]} 19. Rc4 {[%clk 0:01:31]}  Qe8 {[%clk 0:02:03]} 20. Qc2 {[%clk 0:00:44]}  Na5 {[%clk 0:01:48]} 21. Rh4 {[%clk 0:00:32]}  Rc8 {[%clk 0:01:45]} 22. Qb1 {[%clk 0:00:30]}  Qc6 {[%clk 0:01:40]} 23. Bd4 {[%clk 0:00:26]}  Rfd8 {[%clk 0:01:32]} 24. Re1 {[%clk 0:00:22]}  h6 {[%clk 0:01:26]} 25. h3 {[%clk 0:00:16]}  Re8 {[%clk 0:01:21]} 26. Rd1 {[%clk 0:00:15]}  Rcd8 {[%clk 0:01:14]} 27. Rc1 {[%clk 0:00:12]}  Qd6 {[%clk 0:01:07]} 28. Qa1 {[%clk 0:00:12]}  Re6 {[%clk 0:01:02]} 29. Bc3 {[%clk 0:00:09]}  Nc6 {[%clk 0:00:58]} 30. Rc4 {[%clk 0:00:09]}  Ne7 {[%clk 0:00:46]} 31. Nd4 {[%clk 0:00:08]}  Re4 {[%clk 0:00:36]} 32. Nb5 {[%clk 0:00:06]}  Qf4 {[%clk 0:00:37]} 33. Rc7 {[%clk 0:00:04]}  Re2 {[%clk 0:00:27]} 34. Rf1 {[%clk 0:00:02]}  Ned5 {[%clk 0:00:27]} 35. Rxa7 {[%clk 0:00:01]}  Ne4 {[%clk 0:00:27]} 36. Be5 {[%clk 0:00:01]}  Qg5 {[%clk 0:00:25]} 37. Nd4 {[%clk 0:00:01]}  Ne3 {[%clk 0:00:21]} 38. fxe3 {[%clk 0:00:01]}  Qxg2# {[%clk 0:00:21]} 0-1


[Site "https://www.chess.com"]

[Event "Titled Tuesday Blitz November 29 Early 2022"]
[White "Grandelius, Nils"]
[Black "Wagner, Dennis"]
[WhiteFideId "1710400"]
[BlackFideId "24650684"]
[WhiteElo "2617"]
[BlackElo "2470"]
[Result "1-0"]
[Round "07"]
[TimeControl "180+1"]
[Date "2022.11.30"]
[WhiteClock "0:00:37"]
[BlackClock "0:00:07"]

1. g3 {[%clk 0:03:00]}  c5 {[%clk 0:02:57]} 2. c4 {[%clk 0:02:59]}  Nf6 {[%clk 0:02:54]} 3. Bg2 {[%clk 0:03:00]}  Nc6 {[%clk 0:02:51]} 4. Nc3 {[%clk 0:02:59]}  e6 {[%clk 0:02:52]} 5. Nf3 {[%clk 0:02:47]}  d5 {[%clk 0:02:52]} 6. cxd5 {[%clk 0:02:44]}  exd5 {[%clk 0:02:53]} 7. e3 {[%clk 0:02:34]}  d4 {[%clk 0:02:50]} 8. Ne2 {[%clk 0:02:21]}  Be7 {[%clk 0:02:34]} 9. exd4 {[%clk 0:02:19]}  cxd4 {[%clk 0:02:34]} 10. O-O {[%clk 0:02:17]}  d3 {[%clk 0:02:22]} 11. Nf4 {[%clk 0:02:09]}  O-O {[%clk 0:02:20]} 12. b3 {[%clk 0:02:09]}  Bf5 {[%clk 0:02:02]} 13. Bb2 {[%clk 0:02:02]}  h6 {[%clk 0:02:00]} 14. Ne5 {[%clk 0:01:56]}  Nxe5 {[%clk 0:01:58]} 15. Bxe5 {[%clk 0:01:57]}  Ne4 {[%clk 0:01:26]} 16. Nh5 {[%clk 0:01:16]}  f6 {[%clk 0:01:09]} 17. Bb2 {[%clk 0:00:54]}  Bc5 {[%clk 0:01:09]} 18. Bxe4 {[%clk 0:00:48]}  Bxe4 {[%clk 0:01:08]} 19. Qg4 {[%clk 0:00:49]}  Qe7 {[%clk 0:00:57]} 20. Nxg7 {[%clk 0:00:47]}  Kh7 {[%clk 0:00:47]} 21. Rae1 {[%clk 0:00:37]}  Qxg7 {[%clk 0:00:24]} 22. Qxe4+ {[%clk 0:00:37]}  Qg6 {[%clk 0:00:25]} 23. Qxb7+ {[%clk 0:00:37]}  Kg8 {[%clk 0:00:19]} 24. Qd5+ {[%clk 0:00:34]}  Kh7 {[%clk 0:00:17]} 25. Qxc5 {[%clk 0:00:33]}  Rae8 {[%clk 0:00:17]} 26. Re7+ {[%clk 0:00:31]}  Rxe7 {[%clk 0:00:16]} 27. Qxe7+ {[%clk 0:00:32]}  Rf7 {[%clk 0:00:17]} 28. Qe3 {[%clk 0:00:31]}  h5 {[%clk 0:00:14]} 29. Re1 {[%clk 0:00:31]}  h4 {[%clk 0:00:14]} 30. Qe4 {[%clk 0:00:31]}  hxg3 {[%clk 0:00:12]} 31. Qxg6+ {[%clk 0:00:31]}  Kxg6 {[%clk 0:00:13]} 32. hxg3 {[%clk 0:00:32]}  Rc7 {[%clk 0:00:12]} 33. Bc3 {[%clk 0:00:32]}  Kf5 {[%clk 0:00:12]} 34. Re3 {[%clk 0:00:33]}  Rd7 {[%clk 0:00:12]} 35. f3 {[%clk 0:00:33]}  a5 {[%clk 0:00:12]} 36. Kf2 {[%clk 0:00:34]}  a4 {[%clk 0:00:13]} 37. bxa4 {[%clk 0:00:34]}  Ra7 {[%clk 0:00:12]} 38. Rxd3 {[%clk 0:00:35]}  Rxa4 {[%clk 0:00:13]} 39. Rd4 {[%clk 0:00:35]}  Rxa2 {[%clk 0:00:12]} 40. Rf4+ {[%clk 0:00:35]}  Kg5 {[%clk 0:00:13]} 41. Rxf6 {[%clk 0:00:36]}  Rxd2+ {[%clk 0:00:10]} 42. Bxd2+ {[%clk 0:00:36]}  Kh5 {[%clk 0:00:07]} 43. g4+ {[%clk 0:00:37]} 1-0


[Site "https://www.chess.com"]

[Event "Titled Tuesday Blitz November 29 Early 2022"]
[White "Gurevich, Dmitry"]
[Black "Tokhirjonova, Gulrukhbegim"]
[WhiteFideId "2000407"]
[BlackFideId "14203626"]
[WhiteElo "2506"]
[BlackElo "2236"]
[Result "1/2-1/2"]
[Round "07"]
[TimeControl "180+1"]
[Date "2022.11.30"]
[WhiteClock "0:00:10"]
[BlackClock "0:00:20"]

1. d4 {[%clk 0:03:00]}  Nf6 {[%clk 0:02:58]} 2. c4 {[%clk 0:03:00]}  g6 {[%clk 0:02:58]} 3. Nc3 {[%clk 0:03:00]}  d5 {[%clk 0:02:58]} 4. Nf3 {[%clk 0:02:59]}  Bg7 {[%clk 0:02:57]} 5. cxd5 {[%clk 0:02:59]}  Nxd5 {[%clk 0:02:58]} 6. Bd2 {[%clk 0:02:59]}  O-O {[%clk 0:02:56]} 7. Rc1 {[%clk 0:02:58]}  c6 {[%clk 0:02:51]} 8. e3 {[%clk 0:02:55]}  Bf5 {[%clk 0:02:45]} 9. Be2 {[%clk 0:02:45]}  Nd7 {[%clk 0:02:42]} 10. O-O {[%clk 0:02:43]}  N7f6 {[%clk 0:02:33]} 11. Qb3 {[%clk 0:02:39]}  Nb6 {[%clk 0:02:29]} 12. Rfd1 {[%clk 0:02:34]}  Ne4 {[%clk 0:02:27]} 13. Be1 {[%clk 0:02:22]}  Re8 {[%clk 0:02:23]} 14. a4 {[%clk 0:02:19]}  Be6 {[%clk 0:02:16]} 15. Qa3 {[%clk 0:02:16]}  Nd6 {[%clk 0:02:15]} 16. b3 {[%clk 0:02:14]}  a5 {[%clk 0:02:14]} 17. Ne5 {[%clk 0:02:07]}  Nd5 {[%clk 0:02:12]} 18. Bf3 {[%clk 0:01:43]}  Nb4 {[%clk 0:01:58]} 19. Ne2 {[%clk 0:01:30]}  Qb6 {[%clk 0:01:54]} 20. Nf4 {[%clk 0:01:27]}  Bf5 {[%clk 0:01:51]} 21. Be2 {[%clk 0:01:10]}  Nc2 {[%clk 0:01:45]} 22. Qb2 {[%clk 0:01:07]}  Nxe1 {[%clk 0:01:42]} 23. Rxe1 {[%clk 0:01:08]}  Rad8 {[%clk 0:01:37]} 24. Nfd3 {[%clk 0:01:05]}  Be6 {[%clk 0:01:32]} 25. Nc5 {[%clk 0:01:04]}  Bd5 {[%clk 0:01:29]} 26. f3 {[%clk 0:00:59]}  f6 {[%clk 0:01:24]} 27. Ned3 {[%clk 0:00:55]}  e5 {[%clk 0:01:24]} 28. dxe5 {[%clk 0:00:51]}  fxe5 {[%clk 0:01:22]} 29. e4 {[%clk 0:00:50]}  Bf7 {[%clk 0:01:21]} 30. Kh1 {[%clk 0:00:44]}  Bh6 {[%clk 0:01:08]} 31. Rc2 {[%clk 0:00:38]}  Be3 {[%clk 0:01:06]} 32. Bf1 {[%clk 0:00:36]}  Bd4 {[%clk 0:01:04]} 33. Qc1 {[%clk 0:00:35]}  Kg7 {[%clk 0:00:57]} 34. f4 {[%clk 0:00:29]}  exf4 {[%clk 0:00:53]} 35. e5 {[%clk 0:00:23]}  Nf5 {[%clk 0:00:42]} 36. e6 {[%clk 0:00:22]}  Bg8 {[%clk 0:00:39]} 37. Qxf4 {[%clk 0:00:20]}  Bf6 {[%clk 0:00:31]} 38. Nd7 {[%clk 0:00:17]}  Qxb3 {[%clk 0:00:27]} 39. Nxf6 {[%clk 0:00:13]}  Qxc2 {[%clk 0:00:22]} 40. Nxe8+ {[%clk 0:00:13]}  Rxe8 {[%clk 0:00:23]} 41. Qe5+ {[%clk 0:00:12]}  Kh6 {[%clk 0:00:20]} 42. Qf4+ {[%clk 0:00:11]}  Kg7 {[%clk 0:00:20]} 43. Qe5+ {[%clk 0:00:11]}  Kh6 {[%clk 0:00:20]} 44. Qf4+ {[%clk 0:00:10]}  Kg7 {[%clk 0:00:20]} 1/2-1/2


[Site "https://www.chess.com"]

[Event "Titled Tuesday Blitz November 29 Early 2022"]
[White "Hansen, Eric"]
[Black "Kamsky, Gata"]
[WhiteFideId "2606771"]
[BlackFideId "2000024"]
[WhiteElo "2978"]
[BlackElo "2859"]
[Result "1/2-1/2"]
[Round "07"]
[TimeControl "180+1"]
[Date "2022.11.30"]
[WhiteClock "0:00:03"]
[BlackClock "0:00:06"]

1. e4 {[%clk 0:03:00]}  e5 {[%clk 0:02:57]} 2. Nf3 {[%clk 0:02:59]}  Nc6 {[%clk 0:02:55]} 3. Bb5 {[%clk 0:02:59]}  Nf6 {[%clk 0:02:53]} 4. d3 {[%clk 0:02:59]}  d6 {[%clk 0:02:53]} 5. c3 {[%clk 0:02:59]}  Bd7 {[%clk 0:02:53]} 6. O-O {[%clk 0:02:59]}  g6 {[%clk 0:02:53]} 7. Re1 {[%clk 0:02:59]}  Bg7 {[%clk 0:02:53]} 8. h3 {[%clk 0:02:59]}  O-O {[%clk 0:02:53]} 9. Ba4 {[%clk 0:02:56]}  Qe8 {[%clk 0:02:52]} 10. Nbd2 {[%clk 0:02:56]}  Nh5 {[%clk 0:02:48]} 11. Nf1 {[%clk 0:02:53]}  f5 {[%clk 0:02:48]} 12. d4 {[%clk 0:02:47]}  fxe4 {[%clk 0:02:44]} 13. Bb3+ {[%clk 0:02:43]}  Kh8 {[%clk 0:02:41]} 14. Rxe4 {[%clk 0:02:44]}  Na5 {[%clk 0:02:30]} 15. dxe5 {[%clk 0:02:07]}  Nxb3 {[%clk 0:02:27]} 16. axb3 {[%clk 0:02:08]}  Bc6 {[%clk 0:02:27]} 17. Re3 {[%clk 0:02:08]}  dxe5 {[%clk 0:02:15]} 18. Ra5 {[%clk 0:01:54]}  e4 {[%clk 0:02:00]} 19. Nd4 {[%clk 0:01:51]}  Rd8 {[%clk 0:01:58]} 20. Qc2 {[%clk 0:01:40]}  Bd5 {[%clk 0:01:40]} 21. Re1 {[%clk 0:01:31]}  b6 {[%clk 0:01:39]} 22. Rxa7 {[%clk 0:01:27]}  c5 {[%clk 0:01:40]} 23. Ne2 {[%clk 0:01:26]}  Be5 {[%clk 0:01:18]} 24. Bh6 {[%clk 0:01:21]}  Bb8 {[%clk 0:01:12]} 25. Bxf8 {[%clk 0:01:09]}  Bxa7 {[%clk 0:01:12]} 26. Bh6 {[%clk 0:01:08]}  Bb8 {[%clk 0:01:05]} 27. Rd1 {[%clk 0:01:06]}  Bc6 {[%clk 0:00:57]} 28. Rd2 {[%clk 0:00:52]}  Kg8 {[%clk 0:00:53]} 29. Ne3 {[%clk 0:00:39]}  Bc7 {[%clk 0:00:35]} 30. Ng4 {[%clk 0:00:35]}  Rxd2 {[%clk 0:00:31]} 31. Qxd2 {[%clk 0:00:34]}  Qd7 {[%clk 0:00:32]} 32. Qe1 {[%clk 0:00:25]}  Qd6 {[%clk 0:00:30]} 33. Bg5 {[%clk 0:00:16]}  Qd5 {[%clk 0:00:25]} 34. Be3 {[%clk 0:00:06]}  Kf7 {[%clk 0:00:24]} 35. c4 {[%clk 0:00:06]}  Qd3 {[%clk 0:00:23]} 36. Nc3 {[%clk 0:00:05]}  Ng7 {[%clk 0:00:20]} 37. Nh6+ {[%clk 0:00:04]}  Ke6 {[%clk 0:00:20]} 38. f3 {[%clk 0:00:04]}  Nf5 {[%clk 0:00:19]} 39. Nxf5 {[%clk 0:00:03]}  gxf5 {[%clk 0:00:19]} 40. fxe4 {[%clk 0:00:04]}  Bxe4 {[%clk 0:00:18]} 41. Qf2 {[%clk 0:00:03]}  Bc6 {[%clk 0:00:16]} 42. Bf4 {[%clk 0:00:02]}  Bd8 {[%clk 0:00:14]} 43. Qe1+ {[%clk 0:00:02]}  Kf7 {[%clk 0:00:13]} 44. Qe5 {[%clk 0:00:01]}  Qd4+ {[%clk 0:00:13]} 45. Kh2 {[%clk 0:00:01]}  Qxe5 {[%clk 0:00:13]} 46. Bxe5 {[%clk 0:00:02]}  Bg5 {[%clk 0:00:13]} 47. Kg3 {[%clk 0:00:02]}  Bc1 {[%clk 0:00:13]} 48. Ne2 {[%clk 0:00:02]}  Bd2 {[%clk 0:00:13]} 49. Kf2 {[%clk 0:00:02]}  Be4 {[%clk 0:00:12]} 50. Bc3 {[%clk 0:00:02]}  Bg5 {[%clk 0:00:12]} 51. b4 {[%clk 0:00:01]}  Bd3 {[%clk 0:00:11]} 52. b3 {[%clk 0:00:02]}  Bc2 {[%clk 0:00:11]} 53. bxc5 {[%clk 0:00:02]}  bxc5 {[%clk 0:00:11]} 54. b4 {[%clk 0:00:02]}  cxb4 {[%clk 0:00:09]} 55. Bxb4 {[%clk 0:00:03]}  Bd3 {[%clk 0:00:09]} 56. c5 {[%clk 0:00:04]}  Ke6 {[%clk 0:00:09]} 57. Nd4+ {[%clk 0:00:03]}  Kd5 {[%clk 0:00:09]} 58. Nf3 {[%clk 0:00:03]}  Bf6 {[%clk 0:00:08]} 59. Ke3 {[%clk 0:00:04]}  Bf1 {[%clk 0:00:08]} 60. Kf2 {[%clk 0:00:03]}  Bb5 {[%clk 0:00:08]} 61. Ke3 {[%clk 0:00:03]}  Bf1 {[%clk 0:00:07]} 62. Kf2 {[%clk 0:00:02]}  Bb5 {[%clk 0:00:07]} 63. Ba3 {[%clk 0:00:02]}  f4 {[%clk 0:00:07]} 64. Ke1 {[%clk 0:00:02]}  Ke4 {[%clk 0:00:06]} 65. Kf2 {[%clk 0:00:02]}  h6 {[%clk 0:00:06]} 66. Nd2+ {[%clk 0:00:02]}  Kd3 {[%clk 0:00:05]} 67. Nf3 {[%clk 0:00:03]}  Ke4 {[%clk 0:00:06]} 68. Nd2+ {[%clk 0:00:03]}  Kd3 {[%clk 0:00:06]} 69. Nf3 {[%clk 0:00:03]}  Ke4 {[%clk 0:00:06]} 1/2-1/2


[Site "https://www.chess.com"]

[Event "Titled Tuesday Blitz November 29 Early 2022"]
[White "Hoffmann, Asa"]
[Black "Fromm, Marius"]
[WhiteFideId "2001470"]
[BlackFideId "12993190"]
[WhiteElo "2117"]
[BlackElo "2325"]
[Result "0-1"]
[Round "07"]
[TimeControl "180+1"]
[Date "2022.11.30"]
[WhiteClock "0:00:20"]
[BlackClock "0:00:18"]

1. d4 {[%clk 0:02:31]}  d5 {[%clk 0:02:59]} 2. Bg5 {[%clk 0:02:27]}  h6 {[%clk 0:02:58]} 3. Bh4 {[%clk 0:02:20]}  c5 {[%clk 0:02:54]} 4. e3 {[%clk 0:02:18]}  Nf6 {[%clk 0:02:52]} 5. c3 {[%clk 0:02:15]}  Qb6 {[%clk 0:02:47]} 6. b3 {[%clk 0:02:11]}  Nc6 {[%clk 0:02:43]} 7. Bd3 {[%clk 0:02:09]}  e5 {[%clk 0:02:30]} 8. Nd2 {[%clk 0:02:01]}  cxd4 {[%clk 0:02:23]} 9. cxd4 {[%clk 0:01:58]}  exd4 {[%clk 0:02:23]} 10. exd4 {[%clk 0:01:54]}  Nxd4 {[%clk 0:02:18]} 11. Ngf3 {[%clk 0:01:49]}  Nxf3+ {[%clk 0:02:17]} 12. Qxf3 {[%clk 0:01:27]}  Bb4 {[%clk 0:02:14]} 13. Bxf6 {[%clk 0:01:14]}  Qxf6 {[%clk 0:02:12]} 14. Qxf6 {[%clk 0:01:13]}  gxf6 {[%clk 0:02:12]} 15. O-O-O {[%clk 0:01:12]}  Be6 {[%clk 0:02:10]} 16. Nf3 {[%clk 0:01:10]}  Rc8+ {[%clk 0:02:09]} 17. Kb1 {[%clk 0:01:10]}  Bc3 {[%clk 0:02:02]} 18. Nh4 {[%clk 0:00:59]}  Kd7 {[%clk 0:01:54]} 19. g3 {[%clk 0:00:58]}  a6 {[%clk 0:01:48]} 20. Ng2 {[%clk 0:00:58]}  Kd6 {[%clk 0:01:44]} 21. Nf4 {[%clk 0:00:57]}  Be5 {[%clk 0:01:41]} 22. Ne2 {[%clk 0:00:52]}  h5 {[%clk 0:01:31]} 23. f4 {[%clk 0:00:52]}  Bc3 {[%clk 0:01:30]} 24. f5 {[%clk 0:00:50]}  Bd7 {[%clk 0:01:29]} 25. Be4 {[%clk 0:00:50]}  Be5 {[%clk 0:00:57]} 26. Rxd5+ {[%clk 0:00:46]}  Ke7 {[%clk 0:00:57]} 27. Rd3 {[%clk 0:00:37]}  Bb5 {[%clk 0:00:56]} 28. Rd2 {[%clk 0:00:37]}  h4 {[%clk 0:00:50]} 29. g4 {[%clk 0:00:35]}  Rc7 {[%clk 0:00:33]} 30. Rhd1 {[%clk 0:00:33]}  Bxh2 {[%clk 0:00:30]} 31. Nd4 {[%clk 0:00:32]}  Be5 {[%clk 0:00:29]} 32. Nxb5 {[%clk 0:00:31]}  axb5 {[%clk 0:00:29]} 33. Bd3 {[%clk 0:00:30]}  b4 {[%clk 0:00:24]} 34. Be4 {[%clk 0:00:30]}  h3 {[%clk 0:00:24]} 35. Rc2 {[%clk 0:00:29]}  Rxc2 {[%clk 0:00:22]} 36. Kxc2 {[%clk 0:00:29]}  h2 {[%clk 0:00:23]} 37. Bh1 {[%clk 0:00:28]}  b6 {[%clk 0:00:23]} 38. Rd5 {[%clk 0:00:25]}  Rc8+ {[%clk 0:00:22]} 39. Kd2 {[%clk 0:00:24]}  Bf4+ {[%clk 0:00:22]} 40. Ke2 {[%clk 0:00:23]}  Rc2+ {[%clk 0:00:21]} 41. Kf3 {[%clk 0:00:22]}  Be5 {[%clk 0:00:18]} 42. Rb5 {[%clk 0:00:22]}  Rc1 {[%clk 0:00:17]} 43. Kg2 {[%clk 0:00:21]}  Rg1+ {[%clk 0:00:17]} 44. Kf3 {[%clk 0:00:20]}  Rxh1 {[%clk 0:00:18]} 0-1


[Site "https://www.chess.com"]